bitfinex/quotes_ETHUSD_20250504
["timestamp","ask_amount","ask_price","bid_price","bid_amount"]
[1746371094518,5.44662309,1836.0,1835.9,4.55]
[1746371094718,5.44751321,1835.7,1835.6,4.55]
[1746371094869,5.44840361,1835.4,1835.3,4.55]
[1746371096090,5.44820814,1835.5,1835.3,4.55]
[1746371096091,5.44826352,1835.5,1835.3,4.55]
[1746371096275,10.89663239,1835.5,1835.3,4.55]
[1746371096664,5.44840361,1835.4,1835.3,4.55]
[1746371098913,5.44929431,1835.1,1835.0,4.551]
[1746371099193,5.4488343,1835.3,1835.0,4.551]
[1746371099194,0.54484036,1835.3,1835.0,4.551]
[1746371099396,5.99373864,1835.3,1835.0,4.551]
[1746371099687,0.54484036,1835.3,1835.0,4.551]
[1746371099998,0.41218872,1835.5,1835.1,0.7813]
[1746371100199,5.44852361,1835.4,1835.1,0.7813]
[1746371100709,5.44837606,1835.5,1835.1,0.7813]
[1746371100876,5.44841564,1835.4,1835.1,0.7813]
[1746371107800,5.44881806,1835.3,1835.1,0.7813]
[1746371108021,5.44899738,1835.2,1835.0,4.551]
[1746371109969,0.496,1835.4,1835.0,4.551]
[1746371110508,5.44911155,1835.2,1835.0,4.551]
[1746371110874,5.44900331,1835.2,1835.0,4.551]
[1746371112704,5.44929431,1835.1,1835.0,4.551]
[1746371113299,5.44912873,1835.2,1835.0,4.551]
[1746371114011,5.44929431,1835.1,1835.0,4.551]
[1746371114442,5.94452001,1835.4,1835.0,10.00053841]
[1746371114730,5.44852001,1835.4,1835.1,0.78]
[1746371114942,5.44874806,1835.3,1835.1,0.78]
[1746371115100,5.44898508,1835.3,1835.1,0.78]
[1746371115559,5.44894376,1835.3,1835.1,0.78]
[1746371117440,5.44899738,1835.2,1835.1,0.78]
[1746371117802,5.44887496,1835.3,1835.1,0.78]
[1746371118355,5.44899738,1835.2,1835.1,0.78]
[1746371118646,5.44886916,1835.3,1835.1,0.78]
[1746371119221,5.44900839,1835.2,1835.0,5.331]
[1746371119847,5.44888174,1835.3,1835.0,5.331]
[1746371120052,5.44860298,1835.4,1835.0,5.331]
[1746371120359,5.44870851,1835.3,1835.0,5.331]
[1746371121675,0.41472558,1835.5,1835.2,5.44889286]
[1746371121864,5.44776971,1835.7,1835.3,0.78]
[1746371122053,5.44776971,1835.7,1835.4,4.568]
[1746371122253,5.44783555,1835.6,1835.4,4.568]
[1746371122561,6.53739608,1835.6,1835.4,4.568]
[1746371123179,5.44810678,1835.5,1835.4,4.568]
[1746371124582,6.95079891,1835.6,1835.4,4.568]
[1746371125278,1.50280217,1835.6,1835.4,4.568]
[1746371125479,5.4473407,1835.8,1835.4,10.01634904]
[1746371125694,5.4473407,1835.8,1835.5,0.7846]
[1746371127191,5.85563853,1835.8,1835.5,0.7846]
[1746371127391,0.40829783,1835.8,1835.5,0.7846]
[1746371127590,5.44697331,1835.9,1835.5,0.7846]
[1746371127900,5.99167064,1835.9,1835.5,0.7846]
[1746371128087,5.99167064,1835.9,1835.5,6.2327037]
[1746371129800,8.44647609,1836.1,1835.8,0.8017]
[1746371130495,8.86083551,1836.1,1835.8,0.8017]
[1746371131465,3.41435942,1836.1,1835.8,0.8017]
[1746371131668,3.41435942,1836.1,1835.8,10.81688121]
[1746371131669,0.41435942,1836.1,1835.8,10.81688121]
[1746371131909,0.41083295,1836.0,1835.8,10.81688121]
[1746371132205,5.44620436,1836.2,1835.8,12.44329937]
[1746371132372,0.41086361,1836.1,1835.8,10.81688121]
[1746371133429,0.41086361,1836.1,1835.8,16.26388467]
[1746371133721,0.41086361,1836.1,1835.9,5.44690347]
[1746371133922,0.41086361,1836.1,1836.0,5.44662309]
[1746371134093,0.41086361,1836.1,1836.0,6.24832309]
[1746371134423,0.40851816,1836.1,1836.0,0.8017]
[1746371134625,5.4457608,1836.3,1836.0,0.8017]
[1746371134802,0.40854881,1836.2,1836.0,0.8017]
[1746371135003,0.40854881,1836.2,1835.8,5.32]
[1746371135004,6.35063942,1836.2,1835.8,5.32]
[1746371135626,6.35063942,1836.2,1835.8,10.76720978]
[1746371136535,6.75863358,1836.2,1835.8,10.76720978]
[1746371136831,5.44638569,1836.1,1835.8,5.32]
[1746371137028,0.4084875,1836.0,1835.8,5.32]
[1746371137331,7.7894092,1836.2,1835.8,10.76715693]
[1746371137815,0.40851816,1836.1,1835.8,10.76715693]
[1746371141250,0.40851816,1836.1,1835.8,5.32]
[1746371141540,5.85497185,1836.1,1835.8,5.32]
[1746371141841,5.85497185,1836.1,1835.8,4.559]
[1746371141842,5.44702528,1835.9,1835.8,4.559]
[1746371142341,5.85674116,1835.9,1835.8,4.559]
[1746371142727,6.35274116,1835.9,1835.8,4.559]
[1746371144709,0.40971588,1835.9,1835.8,4.559]
[1746371144915,0.40971588,1835.9,1835.8,11.24251647]
[1746371145227,0.40799416,1836.2,1835.9,0.7804]
[1746371145416,5.44610708,1836.2,1835.9,0.7804]
[1746371145743,14.38794543,1836.3,1835.9,0.7804]
[1746371145909,5.44604416,1836.2,1835.9,0.7804]
[1746371146109,5.84546333,1836.2,1835.9,0.7804]
[1746371148746,0.39941917,1836.2,1835.9,0.7804]
[1746371148944,5.94195764,1836.3,1835.9,0.7804]
[1746371149140,7.64097756,1836.3,1835.9,0.7804]
[1746371149847,7.14497756,1836.3,1835.9,6.22725734]
[1746371150348,7.14497756,1836.3,1835.9,0.7804]
[1746371151348,7.5489078,1836.3,1835.9,0.7804]
[1746371151547,5.84988788,1836.3,1835.9,0.7804]
[1746371151854,5.44607146,1836.2,1835.9,0.7804]
[1746371153060,5.44607146,1836.2,1835.9,5.3384]
[1746371156260,5.84984486,1836.3,1835.9,5.3384]
[1746371156461,5.44591462,1836.3,1835.9,10.78526266]
[1746371158477,5.44573327,1836.3,1835.9,6.35908035]
[1746371158773,5.44573327,1836.3,1835.9,11.80586208]
[1746371159143,5.44573327,1836.3,1835.9,10.78518173]
[1746371160176,0.40862341,1836.2,1835.9,10.78518173]
[1746371160340,0.40862341,1836.2,1835.9,16.23187092]
[1746371160742,0.40862341,1836.2,1835.9,10.78508919]
[1746371161775,0.40862341,1836.2,1835.9,5.3384]
[1746371161776,5.85466084,1836.2,1835.9,5.3384]
[1746371161977,0.40862341,1836.2,1835.9,5.3384]
[1746371162177,0.40862341,1836.2,1835.9,10.78530117]
[1746371162948,0.40862341,1836.2,1835.9,10.78509747]
[1746371163152,0.40862341,1836.2,1836.0,5.44661182]
[1746371163373,0.40862341,1836.2,1835.9,10.78513227]
[1746371163762,0.40862341,1836.2,1836.0,6.24592072]
[1746371164084,0.40862341,1836.2,1836.1,6.30008952]
[1746371164259,0.40862341,1836.2,1836.1,6.24562645]
[1746371164459,9.10858732,1836.7,1836.2,6.24504545]
[1746371164662,0.4088519,1836.6,1836.3,10.0035834]
[1746371164959,9.10858732,1836.7,1836.3,10.0035834]
[1746371165283,0.4088519,1836.6,1836.3,10.0035834]
[1746371165579,10.56387701,1836.7,1836.3,10.0035834]
[1746371165782,0.40937278,1836.6,1836.3,10.0035834]
[1746371165976,10.97578765,1836.7,1836.3,10.0035834]
[1746371166487,0.40937278,1836.6,1836.3,10.0035834]
[1746371166875,9.52049796,1836.7,1836.3,10.0035834]
[1746371167080,0.40934214,1836.5,1836.3,10.0035834]
[1746371167265,9.52049796,1836.7,1836.3,10.0035834]
[1746371167468,0.4093115,1836.4,1836.3,10.0035834]
[1746371167794,0.4093115,1836.4,1836.3,11.62844629]
[1746371168092,9.52049796,1836.7,1836.3,11.62844629]
[1746371168264,0.4093115,1836.4,1836.3,10.00373326]
[1746371168465,9.52049796,1836.7,1836.3,10.82073326]
[1746371168657,0.41251977,1836.6,1836.3,10.82073326]
[1746371168857,14.96529402,1836.7,1836.3,10.82073326]
[1746371169256,0.41251977,1836.6,1836.3,10.82073326]
[1746371169486,9.52049796,1836.7,1836.3,10.82073326]
[1746371169678,0.41249501,1836.5,1836.3,10.82073326]
[1746371169890,9.52049796,1836.7,1836.3,11.90280659]
[1746371170060,0.41246437,1836.4,1836.3,11.90280659]
[1746371170586,4.07576053,1836.7,1836.3,11.90280659]
[1746371170587,5.85651104,1836.7,1836.3,11.90280659]
[1746371170804,5.44484987,1836.6,1836.3,6.45707333]
[1746371171107,5.85737552,1836.6,1836.3,6.45707333]
[1746371172204,5.85737552,1836.6,1836.3,5.375]
[1746371174022,5.44617296,1836.2,1836.0,4.44526214]
[1746371174222,5.85869887,1836.1,1836.0,4.543]
[1746371175083,0.41237242,1836.1,1836.0,4.543]
[1746371175412,5.85869887,1836.1,1836.0,4.543]
[1746371175823,0.41237242,1836.1,1836.0,4.543]
[1746371177649,0.41237242,1836.1,1836.0,10.98860469]
[1746371177927,3.66384989,1836.3,1836.1,5.44627028]
[1746371178499,3.66384989,1836.3,1836.2,5.44602984]
[1746371178732,3.66384989,1836.3,1836.2,6.27182984]
[1746371180095,8.98847737,1836.9,1836.5,0.7989]
[1746371180096,3.66384989,1836.6,1836.5,0.7989]
[1746371180713,3.66384989,1836.6,1836.5,6.24404021]
[1746371180933,3.66384989,1836.6,1836.5,0.7989]
[1746371181238,3.66384989,1836.6,1836.4,10.78815213]
[1746371181815,3.66384989,1836.6,1836.5,5.44514021]
[1746371184695,3.66384989,1836.6,1836.5,6.24404021]
[1746371184897,3.66384989,1837.0,1836.7,5.44454631]
[1746371185098,3.66384989,1837.0,1836.5,6.24404021]
[1746371185337,5.44396021,1836.9,1836.5,6.24404021]
[1746371185535,5.44442463,1836.8,1836.4,11.61262687]
[1746371185745,5.44442463,1836.8,1836.4,12.41152687]
[1746371186445,5.44454948,1836.7,1836.4,6.96627273]
[1746371186627,5.44474646,1836.7,1836.4,4.544]
[1746371186999,5.44484949,1836.6,1836.2,9.9102453]
[1746371187200,5.44472116,1836.7,1836.3,4.543]
[1746371188239,5.44488299,1836.6,1836.3,4.543]
[1746371189861,5.94085313,1836.6,1836.3,4.543]
[1746371190065,0.496,1836.6,1836.3,4.543]
[1746371190252,0.40535753,1836.5,1836.3,4.543]
[1746371190565,0.40535753,1836.5,1836.3,9.9886834]
[1746371190879,5.94040505,1836.8,1836.4,5.44543672]
[1746371191047,0.40541879,1836.7,1836.4,5.44514712]
[1746371191454,0.40541879,1836.7,1836.3,9.98854512]
[1746371191758,0.40541879,1836.7,1836.4,5.44541489]
[1746371191949,0.40541879,1836.7,1836.4,5.44524968]
[1746371193227,7.02909408,1836.7,1836.3,9.98855561]
[1746371194256,1.58444098,1836.7,1836.3,9.98855561]
[1746371195470,7.02900971,1836.7,1836.3,9.98855561]
[1746371196064,5.44533642,1836.5,1836.3,4.543]
[1746371196269,6.34848014,1836.4,1836.3,4.543]
[1746371196571,5.44640321,1836.1,1836.0,4.548]
[1746371196877,0.82079505,1836.1,1836.0,4.548]
[1746371198272,0.82079505,1836.1,1835.8,20.4558]
[1746371198273,5.44691976,1835.9,1835.8,19.647]
[1746371198588,5.94401745,1835.6,1835.5,4.548]
[1746371198741,7.08318069,1835.6,1835.5,4.548]
[1746371199064,6.34842324,1835.6,1835.5,4.548]
[1746371201969,5.44810678,1835.5,1835.4,3.64692786]
[1746371202361,5.8524819,1835.5,1835.4,3.64692786]
[1746371202667,5.8524819,1835.5,1835.2,4.549]
[1746371202668,5.44860985,1835.4,1835.2,4.549]
[1746371202852,5.85301426,1835.3,1835.2,4.549]
[1746371203775,0.40431378,1835.3,1835.2,4.549]
[1746371204143,5.44870048,1835.3,1835.2,4.549]
[1746371204363,5.84734918,1835.3,1835.2,4.549]
[1746371204671,0.3986487,1835.3,1835.2,4.549]
[1746371204860,5.44824357,1835.5,1835.2,4.549]
[1746371205059,0.39869114,1835.4,1835.2,4.549]
[1746371205542,5.84709641,1835.4,1835.2,4.549]
[1746371205744,0.39869114,1835.4,1835.2,4.549]
[1746371206271,0.41612305,1835.4,1835.2,4.549]
[1746371206475,0.39534079,1835.3,1835.2,4.549]
[1746371206844,5.94403604,1835.6,1835.2,4.549]
[1746371207174,5.84354583,1835.5,1835.2,4.549]
[1746371208361,6.24921249,1835.5,1835.2,4.549]
[1746371208873,0.80107467,1835.5,1835.2,9.9979679]
[1746371209061,0.39540801,1835.5,1835.3,0.802]
[1746371209381,5.44767444,1835.7,1835.3,6.30501849]
[1746371209576,0.39537146,1835.4,1835.3,6.30501849]
[1746371209765,5.44767444,1835.7,1835.3,6.30501849]
[1746371210075,0.50750851,1835.6,1835.3,6.30501849]
[1746371210263,0.39541978,1835.5,1835.3,7.93530417]
[1746371210463,5.44767444,1835.7,1835.3,7.93530417]
[1746371210787,0.39545044,1835.6,1835.4,5.44831303]
[1746371211189,5.44723847,1835.8,1835.4,5.44831303]
[1746371211388,0.39544331,1835.5,1835.4,5.44831303]
[1746371211587,5.44723847,1835.8,1835.4,5.44831303]
[1746371211777,0.39544331,1835.5,1835.4,5.44831303]
[1746371211977,0.50785481,1835.7,1835.4,5.44831303]
[1746371212196,0.39544331,1835.5,1835.4,5.44831303]
[1746371212347,5.44723847,1835.8,1835.4,5.44831303]
[1746371212540,0.39544331,1835.5,1835.4,5.44831303]
[1746371212745,5.44723847,1835.8,1835.4,5.44831303]
[1746371212945,0.39544331,1835.5,1835.4,5.44831303]
[1746371213590,5.44723847,1835.8,1835.4,5.44831303]
[1746371213790,5.44723847,1835.8,1835.3,10.06837932]
[1746371213791,0.39544331,1835.5,1835.3,0.802]
[1746371213990,5.44870048,1835.3,1835.2,4.55]
[1746371214280,5.44921714,1835.2,1835.0,19.647]
[1746371214489,0.39818295,1835.1,1835.0,19.647]
[1746371214847,0.90627439,1835.1,1835.0,19.647]
[1746371216577,0.39818295,1835.1,1835.0,19.647]
[1746371216873,5.44852525,1835.4,1835.0,19.647]
[1746371216874,10.89718256,1835.4,1835.0,19.647]
[1746371217077,0.9065966,1835.3,1835.0,19.647]
[1746371217768,0.50835231,1835.2,1835.0,19.647]
[1746371218081,0.39818295,1835.1,1835.0,25.09653404]
[1746371218581,0.50858316,1835.1,1835.0,19.647]
[1746371218781,0.90676611,1835.1,1835.0,19.647]
[1746371220185,0.90676611,1835.1,1834.9,12.93921562]
[1746371220895,0.39818295,1835.1,1834.9,12.93921562]
[1746371221085,5.8632796,1835.3,1834.9,12.93921562]
[1746371221263,0.90712094,1835.2,1834.9,12.93921562]
[1746371221788,0.50890732,1835.1,1834.9,12.93921562]
[1746371222265,0.39815227,1835.0,1834.9,12.93921562]
[1746371222955,5.8632796,1835.3,1834.9,12.93921562]
[1746371223156,0.41453931,1835.3,1835.0,0.05448983]
[1746371223379,5.44843051,1835.4,1835.0,5.50399733]
[1746371223578,10.89710359,1835.4,1835.0,5.50399733]
[1746371223780,0.50947483,1835.3,1835.0,5.50399733]
[1746371224090,0.50947483,1835.3,1835.1,8.44852507]
[1746371224278,0.41971818,1835.4,1835.1,6.26110773]
[1746371224279,0.50947483,1835.2,1835.1,6.26110773]
[1746371224458,0.50947483,1835.2,1835.0,6.26140263]
[1746371224656,0.50947483,1835.1,1835.0,6.26140263]
[1746371225270,0.50947483,1835.1,1835.0,6.26159128]
[1746371225587,0.50947483,1835.1,1834.9,4.551]
[1746371225958,0.50947483,1835.0,1834.9,4.551]
[1746371226158,0.50947483,1835.0,1834.9,10.00088827]
[1746371226486,0.50947483,1835.0,1834.9,4.551]
[1746371227054,0.50947483,1835.0,1834.9,10.00088827]
[1746371227263,0.50947483,1835.0,1834.9,4.551]
[1746371227471,0.50947483,1835.0,1834.9,10.00088827]
[1746371228000,0.50947483,1835.0,1834.9,4.551]
[1746371229001,0.50947483,1835.0,1834.9,10.00088827]
[1746371229811,0.50947483,1835.0,1834.9,4.551]
[1746371234421,0.50947483,1835.0,1834.9,10.00088827]
[1746371235385,0.90533701,1835.0,1834.9,10.00088827]
[1746371238117,0.39586218,1835.0,1834.9,10.00088827]
[1746371238312,5.44888396,1835.3,1834.9,10.00088827]
[1746371238610,0.39592354,1835.2,1834.9,10.0553817]
[1746371238915,0.39592354,1835.2,1834.9,10.00088827]
[1746371239116,5.84493186,1835.2,1834.9,4.551]
[1746371239413,5.44935732,1835.1,1834.9,4.551]
[1746371239616,0.496,1835.1,1834.9,4.551]
[1746371239801,0.39586218,1835.0,1834.9,4.551]
[1746371241481,5.94513823,1835.2,1834.9,4.551]
[1746371241682,0.39583991,1835.1,1834.9,4.551]
[1746371242931,0.39583991,1835.1,1834.9,10.00084092]
[1746371243094,0.39583991,1835.1,1834.9,10.75244092]
[1746371243427,5.94488069,1835.3,1834.9,10.75244092]
[1746371243628,0.39580922,1835.0,1834.9,10.75244092]
[1746371243810,5.94488069,1835.3,1834.9,10.75244092]
[1746371244012,0.39580922,1835.0,1834.9,5.3026]
[1746371244330,0.39586647,1835.0,1834.9,5.3026]
[1746371244528,5.44900952,1835.2,1834.9,5.3026]
[1746371244712,0.39589716,1835.1,1834.9,5.3026]
[1746371244884,0.39589716,1835.1,1835.0,4.562]
[1746371246816,5.84519147,1835.1,1835.0,4.562]
[1746371247118,0.39589716,1835.1,1835.0,4.562]
[1746371248218,5.84519147,1835.1,1835.0,4.562]
[1746371248390,0.39589716,1835.1,1835.0,4.562]
[1746371250096,5.94484362,1835.3,1835.0,4.562]
[1746371250290,6.579559,1835.3,1835.0,4.562]
[1746371250497,0.39592783,1835.2,1835.0,4.562]
[1746371258037,0.39592783,1835.2,1835.1,0.7631]
[1746371258331,3.66384989,1835.4,1835.3,6.21180048]
[1746371258537,4.02515637,1835.4,1835.3,6.21180048]
[1746371258830,4.02515637,1835.4,1835.3,7.37786943]
[1746371261840,4.02515637,1835.4,1835.3,7.43234972]
[1746371262034,4.02515637,1835.4,1835.3,9.61976706]
[1746371262330,4.02515637,1835.4,1835.3,12.56528677]
[1746371263138,0.36130648,1835.4,1835.3,12.56528677]
[1746371263352,3.66384989,1835.8,1835.7,5.44751321]
[1746371263537,4.00036948,1835.8,1835.7,9.97751321]
[1746371264342,4.00036948,1835.8,1835.7,10.03198326]
[1746371264740,4.00036948,1835.8,1835.7,10.03198275]
[1746371265048,4.00036948,1835.8,1835.7,9.97751321]
[1746371265220,3.81266745,1835.8,1835.7,9.97751321]
[1746371265548,3.81266745,1835.8,1835.7,10.03198244]
[1746371265836,3.81266745,1835.8,1835.7,11.65564773]
[1746371266038,3.81266745,1835.8,1835.7,11.6011785]
[1746371266240,3.81266745,1835.8,1835.7,17.54819584]
[1746371266608,3.47614786,1835.8,1835.7,17.54819584]
[1746371267138,0.496,1836.5,1836.1,5.44607171]
[1746371267330,0.33671522,1836.4,1836.2,9.97601591]
[1746371268117,0.33671522,1836.4,1836.2,9.97581831]
[1746371270033,0.33671522,1836.4,1836.2,4.58445581]
[1746371270239,0.33671522,1836.4,1836.2,9.9757902]
[1746371270433,5.4448794,1836.6,1836.2,9.9757902]
[1746371270830,0.33674585,1836.5,1836.2,9.9757902]
[1746371271546,0.33674585,1836.5,1836.4,5.44543672]
[1746371271746,0.413036,1836.7,1836.4,5.44543672]
[1746371271949,0.33677648,1836.6,1836.5,5.44512999]
[1746371272116,0.496,1836.9,1836.6,5.44464925]
[1746371272317,0.33683773,1836.8,1836.7,5.44437791]
[1746371272628,2.68341734,1837.1,1836.7,5.44433436]
[1746371272812,0.33683773,1836.8,1836.7,5.44433436]
[1746371273015,0.8971665,1837.1,1836.7,5.44433436]
[1746371273248,0.8971665,1837.1,1836.8,5.44411755]
[1746371274252,0.8971665,1837.1,1836.7,5.44441735]
[1746371274823,9.55295427,1837.1,1836.7,5.4445434]
[1746371276628,5.4436951,1837.0,1836.6,9.97373719]
[1746371280258,5.94031141,1836.8,1836.6,4.529]
[1746371280429,5.94027735,1836.8,1836.6,4.529]
[1746371280630,0.34802852,1836.7,1836.6,4.529]
[1746371282759,0.34802852,1836.7,1836.2,7.06405413]
[1746371282760,6.42141495,1836.7,1836.2,7.06405413]
[1746371283061,0.97686767,1836.7,1836.4,5.44542026]
[1746371283357,6.42155999,1836.7,1836.3,9.97364462]
[1746371283748,0.496,1836.6,1836.3,9.97357927]
[1746371284063,0.34693191,1836.5,1836.3,15.41911025]
[1746371284234,0.34693191,1836.5,1836.4,5.44543672]
[1746371284637,0.34693191,1836.5,1836.4,7.79348568]
[1746371284935,0.496,1836.8,1836.5,5.44506268]
[1746371287463,0.496,1836.9,1836.6,5.44481797]
[1746371287831,0.496,1836.9,1836.4,7.73887094]
[1746371288036,5.93997111,1836.9,1836.5,5.44498706]
[1746371288663,0.496,1836.9,1836.6,5.44483087]
[1746371289573,5.94007711,1836.9,1836.5,5.44493321]
[1746371291170,5.94043288,1836.8,1836.3,9.97355494]
[1746371291377,5.94043288,1836.8,1836.4,5.44532584]
[1746371291878,5.94043288,1836.8,1836.4,5.44521371]
[1746371292076,5.94043288,1836.8,1836.4,10.89041032]
[1746371292453,5.94043288,1836.8,1836.4,5.44519661]
[1746371292777,0.496,1836.8,1836.5,5.44512941]
[1746371293272,0.496,1836.8,1836.4,6.98713063]
[1746371293500,5.94042499,1836.8,1836.4,6.98713063]
[1746371294342,5.94042499,1836.8,1836.4,5.44525206]
[1746371295173,0.34631467,1836.7,1836.4,5.44525206]
[1746371296675,0.34631467,1836.7,1836.5,4.551]
[1746371298378,5.44484373,1836.6,1836.5,4.551]
[1746371298541,6.28712777,1836.6,1836.5,4.551]
[1746371298747,6.28712777,1836.6,1835.8,26.84888689]
[1746371298748,5.44617096,1836.2,1835.8,26.84888689]
[1746371298946,5.94180929,1836.3,1835.9,9.99790124]
[1746371298947,0.34610734,1836.1,1835.9,9.99790124]
[1746371299168,5.94180929,1836.3,1835.9,9.99790124]
[1746371299475,0.34609682,1836.2,1835.9,9.99790124]
[1746371300357,5.94244526,1836.1,1835.9,4.551]
[1746371300550,0.346012,1836.0,1835.9,4.551]
[1746371304154,0.346012,1836.0,1835.9,13.73303538]
[1746371304359,8.94159032,1836.4,1836.0,5.44646657]
[1746371304550,0.34283464,1836.3,1836.0,5.44646657]
[1746371304741,0.75552542,1836.3,1836.0,5.44646657]
[1746371304947,0.34283464,1836.3,1836.0,5.44646657]
[1746371306398,0.34283464,1836.3,1836.0,5.500897]
[1746371306754,0.34283464,1836.3,1836.1,5.44628944]
[1746371310999,0.34283464,1836.3,1836.2,5.44602984]
[1746371311198,5.94097795,1836.6,1836.2,5.44602984]
[1746371311366,0.34093968,1836.5,1836.2,5.44602984]
[1746371312261,0.34093968,1836.5,1836.3,9.997702]
[1746371312765,0.34093968,1836.5,1836.3,9.99755724]
[1746371313097,0.89936181,1836.7,1836.3,9.99755724]
[1746371313402,0.496,1836.0,1835.9,4.552]
[1746371313611,0.496,1836.0,1835.5,4.552]
[1746371313612,5.94364286,1835.7,1835.5,4.552]
[1746371313804,6.35339697,1835.7,1835.3,4.552]
[1746371313996,0.3426636,1835.6,1835.3,4.552]
[1746371314196,0.3426636,1835.6,1835.3,5.55209027]
[1746371314405,0.3426636,1835.6,1835.3,11.00074518]
[1746371316085,0.3426636,1835.6,1835.3,11.00066023]
[1746371316705,0.3426636,1835.6,1835.3,5.55209027]
[1746371320124,0.3426636,1835.6,1835.3,4.552]
[1746371320510,0.3426636,1835.6,1835.3,10.00069539]
[1746371321452,0.3426636,1835.6,1835.3,4.552]
[1746371321612,5.79062463,1835.6,1835.3,4.552]
[1746371322664,0.3426636,1835.6,1835.3,10.00064365]
[1746371322950,0.3426636,1835.6,1835.0,0.7516]
[1746371322951,5.44929431,1835.1,1835.0,4.58]
[1746371323112,5.94529431,1835.1,1835.0,4.58]
[1746371323311,6.28293481,1835.1,1835.0,4.58]
[1746371324021,0.8336405,1835.1,1835.0,4.58]
[1746371324733,0.3376405,1835.1,1835.0,7.1879007]
[1746371324930,0.3376405,1835.1,1835.0,7.24239704]
[1746371325106,10.89721574,1835.4,1835.0,7.1879007]
[1746371325313,0.31961946,1835.1,1835.0,7.1879007]
[1746371325512,5.44887686,1835.3,1835.0,7.1879007]
[1746371325711,0.31965478,1835.1,1835.0,7.1879007]
[1746371325907,5.44887686,1835.3,1835.0,7.24239064]
[1746371326112,0.31965478,1835.1,1835.0,7.24239064]
[1746371326313,5.44887686,1835.3,1835.0,7.24239064]
[1746371326512,0.32011609,1835.1,1835.0,7.24239064]
[1746371326720,5.85805862,1835.3,1835.0,7.24239064]
[1746371326921,0.32011609,1835.1,1835.0,7.24239064]
[1746371327123,5.85789464,1835.3,1835.0,7.24239064]
[1746371327334,0.32046204,1835.1,1835.0,7.24239064]
[1746371327520,5.44871288,1835.3,1835.0,7.24239064]
[1746371328028,0.32049862,1835.2,1835.0,7.24239064]
[1746371329029,5.76952198,1835.2,1835.0,7.1879007]
[1746371329229,0.32049862,1835.2,1835.0,5.4041]
[1746371329641,5.44959128,1835.0,1834.6,0.8276]
[1746371329938,5.4501853,1834.8,1834.7,4.581]
[1746371330320,0.32009811,1834.8,1834.7,4.581]
[1746371330847,5.7702893,1834.8,1834.7,4.581]
[1746371331020,5.44989798,1834.9,1834.7,4.581]
[1746371331220,0.32008634,1834.8,1834.7,4.581]
[1746371331716,5.44989798,1834.9,1834.7,4.581]
[1746371331945,0.32008634,1834.8,1834.7,4.581]
[1746371332447,0.32009222,1834.8,1834.7,4.581]
[1746371332652,5.44989798,1834.9,1834.7,4.581]
[1746371332853,0.32009222,1834.8,1834.7,4.581]
[1746371333623,5.44989798,1834.9,1834.7,4.581]
[1746371333823,0.32009222,1834.8,1834.7,4.581]
[1746371334235,5.44989798,1834.9,1834.7,4.581]
[1746371334552,0.32009222,1834.8,1834.7,4.581]
[1746371334856,5.44989798,1834.9,1834.7,4.581]
[1746371335044,5.86246503,1835.3,1834.8,5.4499449]
[1746371335222,5.86246503,1835.3,1834.9,0.88209547]
[1746371335553,5.86246503,1835.3,1834.9,0.8276]
[1746371335732,5.86246503,1835.3,1834.9,6.27736884]
[1746371335934,0.41360579,1835.3,1834.9,6.27733539]
[1746371336148,5.94456442,1835.4,1834.9,7.44998664]
[1746371336780,5.94456442,1835.4,1835.0,5.44951996]
[1746371336981,5.44786024,1835.6,1835.1,5.4096]
[1746371337130,0.41904017,1835.5,1835.1,10.85867414]
[1746371337336,0.40736603,1835.5,1835.1,5.4096]
[1746371337535,5.44786024,1835.6,1835.2,5.44897932]
[1746371337857,6.58700786,1835.6,1835.2,5.44897932]
[1746371338360,1.13914762,1835.6,1835.2,5.50348093]
[1746371338562,5.94373583,1835.7,1835.2,5.44899738]
[1746371338768,5.94373583,1835.7,1835.3,5.44869193]
[1746371338977,0.496,1836.0,1835.4,0.8276]
[1746371339175,5.44704518,1835.9,1835.5,10.02987277]
[1746371339387,5.44704518,1835.9,1835.5,4.582]
[1746371339541,6.0413497,1835.9,1835.5,4.582]
[1746371339939,0.59430452,1835.9,1835.5,4.582]
[1746371340270,0.29504208,1835.8,1835.6,5.44762778]
[1746371340585,8.94279143,1836.0,1835.6,5.44762778]
[1746371340737,0.29513159,1835.9,1835.6,5.44762778]
[1746371342556,0.70413462,1835.9,1835.6,5.44762778]
[1746371343445,6.15113606,1835.9,1835.5,10.02995965]
[1746371343638,6.15113606,1835.9,1835.5,11.6605426]
[1746371344251,5.94380998,1835.6,1835.2,6.8627]
[1746371344564,5.44959128,1835.0,1834.9,4.581]
[1746371344743,5.74454471,1835.0,1834.9,4.581]
[1746371345779,0.29495343,1835.0,1834.9,5.4001]
[1746371345941,0.50939645,1835.0,1834.9,6.4851098]
[1746371346163,0.7778793,1835.0,1834.9,11.93499807]
[1746371346983,0.50939645,1835.0,1834.9,11.93499807]
[1746371347176,0.40770486,1835.3,1835.0,5.44933843]
[1746371347401,5.44959128,1835.0,1834.9,5.6660098]
[1746371347604,6.80800237,1835.0,1834.9,4.581]
[1746371347803,5.71810357,1835.0,1834.9,4.581]
[1746371348400,6.22757562,1835.0,1834.9,4.581]
[1746371348773,6.22757562,1835.0,1834.7,4.621]
[1746371348774,0.77798434,1835.0,1834.7,4.621]
[1746371348975,5.95951944,1834.9,1834.7,4.621]
[1746371349275,0.26843912,1834.8,1834.7,4.621]
[1746371349476,0.77791117,1834.8,1834.7,4.621]
[1746371349692,0.50947205,1834.8,1834.7,4.621]
[1746371349999,0.77791706,1834.8,1834.7,4.621]
[1746371350297,6.22810236,1834.8,1834.7,4.621]
[1746371350505,0.77791706,1834.8,1834.7,4.621]
[1746371351003,0.77791706,1834.8,1834.7,11.35538236]
[1746371351302,0.77791706,1834.8,1834.7,5.9049]
[1746371351303,0.50947205,1834.8,1834.7,5.9049]
[1746371351673,0.75546869,1834.8,1834.7,5.4428]
[1746371352198,0.75546869,1834.8,1834.7,10.94778118]
[1746371354197,0.75546869,1834.8,1834.7,5.49729882]
[1746371354936,0.75546869,1834.8,1834.7,5.4428]
[1746371358430,0.75546869,1834.8,1834.7,4.621]
[1746371358804,0.75546869,1834.8,1834.7,11.35538236]
[1746371359209,5.86823248,1835.3,1834.8,5.44994064]
[1746371359433,0.24520241,1835.2,1834.9,5.44988005]
[1746371360042,0.24520241,1835.2,1834.9,5.50437124]
[1746371360436,0.24520241,1835.2,1835.1,10.32048224]